bitfinex/quotes_BTCUSD_20241002
["timestamp","ask_amount","ask_price","bid_price","bid_amount"]
[1727867240369,0.1,61305.0,61304.0,0.0001]
[1727867240804,0.21579632,61305.0,61304.0,0.0001]
[1727867242403,0.22179632,61305.0,61304.0,0.0001]
[1727867243304,0.21579632,61305.0,61304.0,0.0001]
[1727867243519,0.22179632,61305.0,61304.0,0.0001]
[1727867245157,0.22179632,61305.0,61304.0,0.00092]
[1727867245372,0.21579632,61305.0,61304.0,0.00092]
[1727867245597,0.22179632,61305.0,61304.0,0.00092]
[1727867245824,0.22679632,61305.0,61304.0,0.00092]
[1727867246280,0.22179632,61305.0,61304.0,0.00092]
[1727867246504,0.22879632,61305.0,61304.0,0.00092]
[1727867246720,0.0385777,61305.0,61304.0,0.00092]
[1727867246938,0.0325777,61305.0,61304.0,0.00092]
[1727867247163,0.0255777,61305.0,61304.0,0.00092]
[1727867247380,0.0385777,61305.0,61304.0,0.00092]
[1727867248085,0.0325777,61305.0,61304.0,0.00092]
[1727867248574,0.0375777,61305.0,61304.0,0.00092]
[1727867248796,0.0325777,61305.0,61304.0,0.00092]
[1727867249047,0.0325777,61305.0,61304.0,0.09642]
[1727867249281,0.0325777,61305.0,61304.0,0.17682]
[1727867249282,0.007,61305.0,61304.0,0.17682]
[1727867249526,0.007,61305.0,61304.0,0.20336909]
[1727867250172,0.011,61305.0,61304.0,0.20336909]
[1727867250466,0.007,61305.0,61304.0,0.20336909]
[1727867250726,0.008,61305.0,61304.0,0.20336909]
[1727867250974,0.19121862,61305.0,61304.0,0.20336909]
[1727867251221,0.19121862,61305.0,61304.0,0.02746909]
[1727867251469,0.21579402,61305.0,61304.0,0.02746909]
[1727867251722,0.40461033,61305.0,61304.0,0.02746909]
[1727867251958,0.38548847,61305.0,61304.0,0.02746909]
[1727867252226,0.38548847,61305.0,61304.0,0.00092]
[1727867252724,0.38048847,61305.0,61304.0,0.00092]
[1727867253506,0.38748847,61305.0,61304.0,0.00092]
[1727867254065,0.48748847,61305.0,61304.0,0.00092]
[1727867254561,0.54223732,61305.0,61304.0,0.00092]
[1727867254564,0.49348847,61305.0,61304.0,0.00092]
[1727867255074,0.48748847,61305.0,61304.0,0.00092]
[1727867255333,0.48748847,61305.0,61301.0,0.001838]
[1727867255334,0.1,61304.0,61301.0,0.001838]
[1727867255587,0.1,61292.0,61290.0,0.00082]
[1727867255842,0.34589445,61291.0,61290.0,0.00082]
[1727867256105,0.26469445,61291.0,61290.0,0.00082]
[1727867259343,0.29027833,61291.0,61290.0,0.00082]
[1727867259583,0.19027833,61291.0,61290.0,0.00082]
[1727867259821,0.29027833,61291.0,61290.0,0.00082]
[1727867260065,0.30427833,61291.0,61290.0,0.00082]
[1727867260309,0.32602352,61291.0,61290.0,0.00082]
[1727867260790,0.33202352,61291.0,61290.0,0.00082]
[1727867261798,0.29627833,61291.0,61290.0,0.00082]
[1727867263438,0.27069445,61291.0,61290.0,0.00082]
[1727867263732,0.29627884,61291.0,61290.0,0.00082]
[1727867264757,0.29827884,61291.0,61290.0,0.00082]
[1727867265567,1.08288084,61291.0,61290.0,0.00082]
[1727867266030,2.5359764,61291.0,61290.0,0.00082]
[1727867266033,0.1,61290.0,61281.0,0.0002]
[1727867266273,0.45491307,61282.0,61281.0,0.0002]
[1727867267280,0.61766407,61282.0,61281.0,0.0002]
[1727867268028,0.62766407,61282.0,61281.0,0.0002]
[1727867268547,0.61766407,61282.0,61281.0,0.0002]
[1727867268798,0.67963048,61282.0,61281.0,0.0002]
[1727867269030,0.64325264,61282.0,61281.0,0.0002]
[1727867269838,0.64325264,61282.0,61281.0,0.00102]
[1727867270088,0.65525264,61282.0,61281.0,0.00102]
[1727867270335,0.64325264,61282.0,61281.0,0.00102]
[1727867271104,0.65625264,61282.0,61281.0,0.00102]
[1727867271377,0.7092419,61282.0,61281.0,0.00102]
[1727867271634,0.7232419,61282.0,61281.0,0.00102]
[1727867272819,0.7092419,61282.0,61281.0,0.00102]
[1727867273075,0.6261909,61282.0,61281.0,0.00102]
[1727867273315,0.6401909,61282.0,61281.0,0.00102]
[1727867273564,0.49450164,61282.0,61281.0,0.00102]
[1727867274048,0.48050164,61282.0,61281.0,0.00102]
[1727867274272,1.53816664,61282.0,61281.0,0.00102]
[1727867274513,1.52416664,61282.0,61281.0,0.00102]
[1727867275028,1.53816664,61282.0,61281.0,0.00102]
[1727867275264,1.5673513,61282.0,61281.0,0.00102]
[1727867275558,0.1,61281.0,61271.0,0.000819]
[1727867275815,0.1,61281.0,61273.0,0.11491974]
[1727867275816,0.87697172,61274.0,61273.0,0.11491974]
[1727867276100,0.87697172,61274.0,61266.0,0.15534455]
[1727867276101,0.002,61267.0,61266.0,0.15534455]
[1727867276316,0.002,61267.0,61266.0,0.10408737]
[1727867276317,0.45691307,61267.0,61266.0,0.10408737]
[1727867276821,4.98621807,61267.0,61266.0,0.07908737]
[1727867277089,5.15109989,61267.0,61266.0,0.07908737]
[1727867277597,5.15109989,61267.0,61247.0,0.24305865]
[1727867277598,0.002,61260.0,61247.0,0.24305865]
[1727867277843,0.005,61255.0,61253.0,0.2134563]
[1727867278083,3.25418007,61254.0,61253.0,0.2134563]
[1727867278311,3.25418007,61254.0,61242.0,0.000819]
[1727867278312,0.2767,61247.0,61242.0,0.000819]
[1727867278549,5.34748807,61247.0,61246.0,0.18609918]
[1727867278839,0.002,61242.0,61241.0,0.0002]
[1727867279125,0.45491307,61242.0,61241.0,0.0002]
[1727867279408,0.1,61241.0,61239.0,0.23076818]
[1727867279673,0.55329416,61240.0,61239.0,0.22464818]
[1727867279953,2.78871016,61240.0,61239.0,0.22464818]
[1727867280218,0.84812816,61240.0,61239.0,0.22464818]
[1727867280761,0.85012816,61240.0,61239.0,0.22464818]
[1727867281287,0.26469445,61240.0,61239.0,0.22464818]
[1727867281289,0.27869445,61240.0,61239.0,0.22464818]
[1727867281513,0.56529416,61240.0,61239.0,0.22464818]
[1727867282838,0.58917003,61240.0,61239.0,0.22464818]
[1727867283352,2.36196803,61240.0,61239.0,0.22464818]
[1727867283600,1.62306303,61240.0,61239.0,0.22464818]
[1727867283840,1.15008503,61240.0,61239.0,0.22464818]
[1727867284129,1.02426803,61240.0,61239.0,0.22464818]
[1727867284318,1.01026803,61240.0,61239.0,0.22464818]
[1727867284539,1.00826803,61240.0,61239.0,0.22464818]
[1727867284759,1.02226803,61240.0,61239.0,0.22464818]
[1727867285228,1.03926803,61240.0,61239.0,0.22464818]
[1727867285441,1.02926803,61240.0,61239.0,0.22464818]
[1727867285653,1.02426803,61240.0,61239.0,0.22464818]
[1727867285882,0.99839216,61240.0,61239.0,0.22464818]
[1727867286097,0.88929016,61240.0,61239.0,0.20732902]
[1727867286314,0.87729016,61240.0,61239.0,0.20732902]
[1727867286535,0.89129016,61240.0,61239.0,0.23891292]
[1727867286767,0.87729016,61240.0,61239.0,0.23891292]
[1727867286981,0.96807993,61240.0,61239.0,0.23891292]
[1727867287209,0.98207993,61240.0,61239.0,0.23891292]
[1727867287432,0.97307993,61240.0,61239.0,0.23891292]
[1727867287861,0.98707993,61240.0,61239.0,0.23891292]
[1727867288311,0.88929016,61240.0,61239.0,0.23891292]
[1727867288754,0.89129016,61240.0,61239.0,0.23891292]
[1727867289456,0.98859016,61240.0,61239.0,0.23891292]
[1727867289669,0.38859971,61234.0,61233.0,0.0002551]
[1727867289894,2.41857616,61234.0,61233.0,0.0002551]
[1727867290108,3.64706498,61234.0,61233.0,0.0002551]
[1727867290343,3.44645359,61234.0,61233.0,0.0002551]
[1727867290788,3.42137359,61234.0,61233.0,0.0002551]
[1727867291006,3.42437359,61234.0,61233.0,0.0002551]
[1727867291227,3.42437359,61234.0,61225.0,0.24075]
[1727867291228,0.28659971,61226.0,61225.0,0.24075]
[1727867291447,3.37850513,61226.0,61225.0,0.24075]
[1727867291709,2.82430213,61226.0,61225.0,0.24075]
[1727867291955,2.84991697,61226.0,61225.0,0.24075]
[1727867292172,2.85191697,61226.0,61225.0,0.24075]
[1727867292831,2.82630213,61226.0,61225.0,0.24075]
[1727867293272,2.46721913,61226.0,61225.0,0.24075]
[1727867293928,2.46221913,61226.0,61225.0,0.24075]
[1727867294163,2.46721913,61226.0,61225.0,0.24075]
[1727867294392,1.98558117,61226.0,61225.0,0.24075]
[1727867294639,0.54104117,61226.0,61225.0,0.24075]
[1727867294867,0.53054117,61226.0,61225.0,0.24075]
[1727867295096,0.53054117,61226.0,61225.0,0.26736592]
[1727867295329,0.53254117,61226.0,61225.0,0.26736592]
[1727867295554,0.63976112,61226.0,61225.0,0.26736592]
[1727867295769,0.75376112,61226.0,61225.0,0.26736592]
[1727867297110,0.75376112,61226.0,61225.0,0.26316592]
[1727867297581,0.75876112,61226.0,61225.0,0.26316592]
[1727867298478,0.63254117,61226.0,61225.0,0.26316592]
[1727867299788,0.64654117,61226.0,61225.0,0.26316592]
[1727867300007,0.63254117,61226.0,61225.0,0.26316592]
[1727867300232,0.64654117,61226.0,61225.0,0.26316592]
[1727867301324,0.64454117,61226.0,61225.0,0.26316592]
[1727867301551,0.63054117,61226.0,61225.0,0.26316592]
[1727867301842,0.8216238,61226.0,61225.0,0.26316592]
[1727867302058,0.79600808,61226.0,61225.0,0.26316592]
[1727867302982,0.81000808,61226.0,61225.0,0.26316592]
[1727867303203,0.79600808,61226.0,61225.0,0.26316592]
[1727867303423,0.81000808,61226.0,61225.0,0.26316592]
[1727867304388,0.79600808,61226.0,61225.0,0.26316592]
[1727867305464,0.63053998,61226.0,61225.0,0.26316592]
[1727867305716,0.19030898,61226.0,61225.0,0.26316592]
[1727867305928,0.16469445,61226.0,61225.0,0.36256592]
[1727867306811,0.17869445,61226.0,61225.0,0.36256592]
[1727867307050,0.27869445,61226.0,61225.0,0.36256592]
[1727867307503,0.27869445,61226.0,61225.0,0.36338492]
[1727867308180,0.26469445,61226.0,61225.0,0.36338492]
[1727867308675,0.17869445,61226.0,61225.0,0.36338492]
[1727867308895,0.16469445,61226.0,61225.0,0.36338492]
[1727867309126,0.19930571,61226.0,61225.0,0.36338492]
[1727867309579,0.21923628,61226.0,61225.0,0.36338492]
[1727867310022,0.31923628,61226.0,61225.0,0.36338492]
[1727867310224,0.29930571,61226.0,61225.0,0.36338492]
[1727867311863,0.29030571,61226.0,61225.0,0.36338492]
[1727867312986,0.41837445,61226.0,61225.0,0.26398492]
[1727867313215,0.48852016,61226.0,61225.0,0.26398492]
[1727867313696,0.48652016,61226.0,61225.0,0.26398492]
[1727867314272,0.48852016,61226.0,61225.0,0.26398492]
[1727867314550,0.50252016,61226.0,61225.0,0.26398492]
[1727867314823,0.47952016,61226.0,61225.0,0.26398492]
[1727867315075,0.49352016,61226.0,61225.0,0.26398492]
[1727867315862,0.43437445,61226.0,61225.0,0.26398492]
[1727867316102,0.43237445,61226.0,61225.0,0.26398492]
[1727867316351,0.29308263,61222.0,61221.0,0.0003]
[1727867316602,0.002,61220.0,61219.0,0.24416091]
[1727867316845,0.29308263,61217.0,61216.0,0.1854329]
[1727867317085,4.73278208,61217.0,61216.0,0.1854329]
[1727867317326,4.81498208,61217.0,61216.0,0.1854329]
[1727867318267,4.86764022,61217.0,61216.0,0.1854329]
[1727867318480,5.03252204,61217.0,61216.0,0.1854329]
[1727867318690,0.29308263,61206.0,61191.0,0.34550455]
[1727867318902,4.37843408,61206.0,61191.0,0.34550455]
[1727867319149,3.98461608,61206.0,61201.0,0.0012]
[1727867319365,2.62871465,61206.0,61201.0,0.0012]
[1727867319577,2.88940555,61206.0,61201.0,0.0012]
[1727867320702,2.97210555,61206.0,61201.0,0.0012]
[1727867321435,2.97710555,61206.0,61205.0,0.24352273]
[1727867321664,2.98710555,61206.0,61205.0,0.23567594]
[1727867322120,3.08557294,61206.0,61205.0,0.1730745]
[1727867322348,3.08557294,61206.0,61201.0,0.0012]
[1727867322349,0.007,61202.0,61201.0,0.0012]
[1727867322564,4.71158127,61202.0,61201.0,0.0012]
[1727867323656,5.06158127,61202.0,61201.0,0.0012]
[1727867324797,0.48689171,61201.0,61200.0,0.53951298]
[1727867325071,4.92659116,61201.0,61200.0,0.51192523]
[1727867325290,3.89463116,61201.0,61200.0,0.51192523]
[1727867325519,4.01871014,61201.0,61200.0,0.51192523]
[1727867326865,4.11717753,61201.0,61200.0,0.42391269]
[1727867327084,4.11717753,61201.0,61200.0,0.28184588]
[1727867327325,4.11717753,61201.0,61198.0,0.23111515]
[1727867327326,0.617,61199.0,61198.0,0.23111515]
[1727867327563,0.617,61199.0,61191.0,0.25370455]
[1727867327564,0.967,61192.0,61191.0,0.25370455]
[1727867327851,0.967,61192.0,61177.0,0.000821]
[1727867327852,0.867,61185.0,61177.0,0.000821]
[1727867328075,5.242005,61185.0,61179.0,0.24387865]
[1727867328296,4.38782182,61185.0,61179.0,0.00082]
[1727867328526,4.55251627,61185.0,61179.0,0.00082]
[1727867328774,4.37763445,61185.0,61179.0,0.00082]
[1727867329237,4.37763445,61185.0,61171.0,0.26229827]
[1727867329238,0.002,61180.0,61171.0,0.26229827]
[1727867329471,3.634559,61179.0,61171.0,0.26229827]
[1727867329689,0.002,61172.0,61171.0,0.26229827]
[1727867330115,1.083373,61172.0,61171.0,0.26229827]
[1727867330329,1.24806745,61172.0,61171.0,0.26229827]
[1727867330551,1.20915845,61172.0,61171.0,0.25729827]
[1727867330989,1.23479581,61172.0,61171.0,0.25729827]
[1727867331963,1.23979581,61172.0,61171.0,0.25729827]
[1727867332206,1.40467763,61172.0,61171.0,0.25729827]
[1727867332923,1.37904027,61172.0,61171.0,0.25729827]
[1727867333168,1.20715845,61172.0,61171.0,0.25729827]
[1727867333667,1.20915845,61172.0,61171.0,0.25729827]
[1727867333935,1.20715845,61172.0,61171.0,0.25729827]
[1727867334457,1.20915845,61172.0,61171.0,0.25729827]
[1727867334716,1.3280743,61172.0,61171.0,0.25729827]
[1727867335209,1.3300743,61172.0,61171.0,0.25729827]
[1727867336152,1.35371325,61172.0,61171.0,0.25729827]
[1727867336370,1.35571325,61172.0,61171.0,0.25729827]
[1727867338326,1.34571325,61172.0,61171.0,0.25729827]
[1727867338768,1.33571325,61172.0,61171.0,0.25729827]
[1727867338985,1.42341325,61172.0,61171.0,0.25729827]
[1727867339238,1.47643428,61172.0,61171.0,0.25729827]
[1727867339460,1.46643428,61172.0,61171.0,0.25729827]
[1727867339682,1.44079533,61172.0,61171.0,0.25729827]
[1727867340565,1.99383025,61172.0,61171.0,0.25729827]
[1727867340788,1.99883025,61172.0,61171.0,0.25729827]
[1727867341647,2.19029947,61172.0,61171.0,0.25729827]
[1727867342313,2.36259947,61172.0,61171.0,0.25729827]
[1727867342752,1.1203,61165.0,61164.0,0.26406818]
[1727867342969,5.85146867,61165.0,61164.0,0.26406818]
[1727867343221,5.85146867,61165.0,61163.0,0.000821]
[1727867343222,0.3689,61164.0,61163.0,0.000821]
[1727867343437,4.89158478,61164.0,61163.0,0.000821]
[1727867344552,4.46534595,61164.0,61163.0,0.000821]
[1727867344812,0.59721395,61164.0,61163.0,0.000821]
[1727867345028,0.55477195,61164.0,61163.0,0.000821]
[1727867345475,0.54477195,61164.0,61163.0,0.01583347]
[1727867345691,0.18034095,61164.0,61163.0,0.000821]
[1727867345902,4.44674296,61164.0,61163.0,0.01583347]
[1727867346125,4.44674296,61164.0,61163.0,0.000821]
[1727867346332,0.23860996,61164.0,61163.0,0.000821]
[1727867346549,3.32007496,61164.0,61163.0,0.000821]
[1727867346762,3.27204004,61164.0,61163.0,0.0158311]
[1727867346971,3.17648604,61164.0,61163.0,0.000821]
[1727867347427,3.27648604,61164.0,61163.0,0.000821]
[1727867348469,3.28304304,61164.0,61163.0,0.000821]
[1727867348884,3.36814304,61164.0,61163.0,0.000821]
[1727867349303,3.89044304,61164.0,61163.0,0.000821]
[1727867349511,3.71814304,61164.0,61163.0,0.000821]
[1727867349923,0.007,61159.0,61158.0,0.0001069]
[1727867350134,4.54669945,61159.0,61158.0,0.0001069]
[1727867350554,4.71899945,61159.0,61158.0,0.0001069]
[1727867354108,0.44399445,61159.0,61158.0,0.0001069]
[1727867354321,3.16734445,61159.0,61158.0,0.0001069]
[1727867354541,3.33222627,61159.0,61158.0,0.01323251]
[1727867354751,3.33222627,61159.0,61158.0,0.0001069]
[1727867356277,3.35787123,61159.0,61158.0,0.0001069]
[1727867357356,3.35787123,61159.0,61158.0,0.0009269]
[1727867358032,3.35587123,61159.0,61158.0,0.0009269]
[1727867358247,3.30921023,61159.0,61158.0,0.0009269]
[1727867358687,3.30721023,61159.0,61158.0,0.0009269]
[1727867358890,0.29033941,61159.0,61158.0,0.0009269]
[1727867359096,0.26469445,61159.0,61158.0,0.01410521]
[1727867359305,0.79199445,61159.0,61158.0,0.0009269]
[1727867359509,5.23388127,61159.0,61158.0,0.0009269]
[1727867359940,0.7793,61158.0,61157.0,0.25598332]
[1727867360163,5.16342545,61158.0,61157.0,0.25598332]
[1727867360397,4.89289145,61158.0,61157.0,0.25598332]
[1727867360627,5.05777327,61158.0,61157.0,0.25598332]
[1727867361548,5.1875943,61158.0,61157.0,0.25598332]
[1727867361780,5.22531987,61158.0,61157.0,0.25598332]
[1727867361994,5.25096612,61158.0,61157.0,0.25598332]
[1727867362217,1.30206912,61158.0,61157.0,0.25598332]
[1727867362439,5.53934855,61158.0,61157.0,0.25598332]
[1727867362658,5.57707412,61158.0,61157.0,0.25598332]
[1727867363079,5.55142787,61158.0,61157.0,0.25598332]
[1727867363728,0.007,61153.0,61151.0,0.00044718]
[1727867363980,4.91046867,61153.0,61151.0,0.00044718]
[1727867364405,0.68232103,61152.0,61151.0,0.00044718]
[1727867364625,0.6793,61151.0,61141.0,0.0002]
[1727867364885,0.017,61131.0,61126.0,0.0163437]
[1727867365104,0.012,61110.0,61109.0,0.20010198]
[1727867365338,0.47576922,61110.0,61109.0,0.13099464]
[1727867365564,0.48076922,61110.0,61109.0,0.13099464]
[1727867365787,0.58539962,61110.0,61109.0,0.13099464]
[1727867366003,0.66039962,61110.0,61109.0,0.13099464]
[1727867366244,0.73007688,61110.0,61109.0,0.10279464]
[1727867366456,1.34973836,61110.0,61109.0,0.10279464]
[1727867366665,1.38076922,61103.0,61102.0,0.2893501]
[1727867366874,2.11576922,61103.0,61102.0,0.25289002]
[1727867367083,2.06576922,61103.0,61102.0,0.25289002]
[1727867367297,0.2893,61101.0,61100.0,0.49671582]
[1727867367500,1.1393,61101.0,61100.0,0.49671582]
[1727867367723,1.42725243,61101.0,61100.0,0.49671582]
[1727867368120,1.71520486,61101.0,61100.0,0.49671582]
[1727867368541,1.71520486,61101.0,61100.0,0.41438177]
[1727867368963,0.1893,61097.0,61095.0,0.000822]
[1727867369167,0.45399445,61097.0,61095.0,0.000822]
[1727867369378,0.44199445,61097.0,61095.0,0.000822]
[1727867369581,0.26669445,61097.0,61095.0,0.000822]
[1727867369793,0.29236854,61097.0,61095.0,0.000822]
[1727867370009,0.46225036,61097.0,61095.0,0.000822]
[1727867370230,0.46025036,61097.0,61095.0,0.000822]
[1727867370446,0.46225036,61097.0,61095.0,0.000822]
[1727867370863,0.46225036,61097.0,61096.0,0.29065763]
[1727867371076,0.47225036,61097.0,61096.0,0.27589767]
[1727867371285,0.47225036,61097.0,61096.0,0.14717685]
[1727867371526,0.117,61096.0,61095.0,0.000822]
[1727867371725,0.63443917,61096.0,61095.0,0.000822]
[1727867371928,1.33443917,61096.0,61095.0,0.000822]
[1727867372399,1.26764688,61096.0,61095.0,0.000822]
[1727867372799,1.25964688,61096.0,61095.0,0.000822]
[1727867373017,5.53465188,61096.0,61095.0,0.000822]
[1727867373263,0.1,61088.0,61087.0,0.03164294]
[1727867373471,1.91370541,61088.0,61087.0,0.03164294]
[1727867373733,2.52428241,61088.0,61087.0,0.03164294]
[1727867373969,2.76459481,61088.0,61087.0,0.03164294]
[1727867374216,2.62248081,61088.0,61087.0,0.03164294]
[1727867374788,2.62748081,61088.0,61087.0,0.03164294]
[1727867375050,2.57496885,61088.0,61087.0,0.03164294]
[1727867375802,2.36831485,61088.0,61087.0,0.03164294]
[1727867376043,2.37331485,61088.0,61087.0,0.03164294]
[1727867376544,2.36831485,61088.0,61087.0,0.03164294]
[1727867377280,2.37531485,61088.0,61087.0,0.03164294]
[1727867377525,0.967,61083.0,61081.0,0.0002]
[1727867377774,1.41964688,61083.0,61081.0,0.0002]
[1727867378026,1.41964688,61083.0,61082.0,0.09454314]
[1727867378277,6.72314642,61083.0,61082.0,0.09454314]
[1727867378513,6.76216578,61083.0,61082.0,0.09454314]
[1727867379237,6.76216578,61083.0,61082.0,0.0563968]
[1727867379516,6.37765188,61083.0,61082.0,0.0563968]
[1727867379771,6.55695188,61083.0,61082.0,0.0563968]
[1727867380046,0.067,61082.0,61081.0,0.0002]
[1727867380295,5.52792128,61082.0,61081.0,0.0002]
[1727867381390,5.47792128,61082.0,61081.0,0.0002]
[1727867381633,5.6428031,61082.0,61081.0,0.0002]
[1727867382158,5.42899945,61082.0,61081.0,0.0002]
[1727867382450,5.46792128,61082.0,61081.0,0.0002]
[1727867383513,6.31592128,61082.0,61081.0,0.0002]
[1727867383793,4.33684445,61082.0,61081.0,0.0002]
[1727867384090,3.68576628,61082.0,61081.0,0.0002]
[1727867384343,3.8506481,61082.0,61081.0,0.0002]
[1727867384597,3.8526481,61082.0,61081.0,0.0002]
[1727867385248,3.8626481,61082.0,61081.0,0.0002]
[1727867386779,3.80172627,61082.0,61081.0,0.0002]
[1727867387023,5.38388127,61082.0,61081.0,0.0002]
[1727867387258,5.43345186,61082.0,61081.0,0.0002]
[1727867387921,5.73388127,61082.0,61081.0,0.0002]
[1727867388145,5.56899945,61082.0,61081.0,0.0002]
[1727867388369,5.61857004,61082.0,61081.0,0.0002]
[1727867388600,5.68423404,61082.0,61081.0,0.0002]
[1727867389024,5.26128504,61082.0,61081.0,0.0002]
[1727867389266,5.42416686,61082.0,61081.0,0.0002]
[1727867389474,5.42616686,61082.0,61081.0,0.0002]
[1727867389724,4.93949586,61082.0,61081.0,0.0002]
[1727867390167,0.002,61079.0,61078.0,0.10384535]
[1727867390382,0.26469445,61079.0,61078.0,0.10384535]
[1727867390600,0.005,61076.0,61075.0,0.29775]
[1727867390823,4.88878966,61076.0,61075.0,0.29775]
[1727867391262,4.88678966,61076.0,61075.0,0.29775]
[1727867391473,4.88878966,61076.0,61075.0,0.29775]
[1727867392561,4.09022142,61076.0,61075.0,0.29775]
[1727867392774,2.87277499,61076.0,61075.0,0.29775]
[1727867393000,2.23573599,61076.0,61075.0,0.29775]
[1727867393203,2.21005545,61076.0,61075.0,0.29775]
[1727867393415,2.37493727,61076.0,61075.0,0.29775]
[1727867394319,2.4817302,61076.0,61075.0,0.29775]
[1727867394534,2.4887302,61076.0,61075.0,0.29775]
[1727867394744,2.4887302,61076.0,61075.0,0.28125635]
[1727867395169,2.6610302,61076.0,61075.0,0.28125635]
[1727867396076,2.60837505,61076.0,61075.0,0.28125635]
[1727867396325,2.63405639,61076.0,61075.0,0.28125635]
[1727867397423,2.68671154,61076.0,61075.0,0.26300643]
[1727867398127,2.68671154,61076.0,61075.0,0.23951511]
[1727867398353,2.68671154,61076.0,61066.0,1.0]
[1727867398354,1.1293,61069.0,61066.0,1.0]
[1727867398569,5.97588188,61069.0,61066.0,1.0]
[1727867398784,5.85695188,61069.0,61068.0,0.31095648]
[1727867399003,5.8826385,61069.0,61068.0,0.30034091]
[1727867399224,5.93677628,61069.0,61068.0,0.30034091]
[1727867399456,0.2893,61067.0,61066.0,1.0]
[1727867399681,0.45399445,61067.0,61066.0,1.0]
[1727867399904,6.7036751,61067.0,61066.0,0.64582743]
[1727867400132,6.46061645,61067.0,61066.0,0.64582743]
[1727867400372,7.2132716,61067.0,61066.0,0.62147562]
[1727867400590,7.2132716,61067.0,61066.0,0.43402169]
[1727867400821,7.2132716,61067.0,61066.0,0.41848089]
[1727867401976,5.63647867,61067.0,61066.0,0.41848089]
[1727867402159,5.49931067,61067.0,61066.0,0.41848089]
[1727867402382,5.55344845,61067.0,61066.0,0.41848089]
[1727867402601,5.38856663,61067.0,61066.0,0.41848089]
[1727867402842,5.34596923,61067.0,61066.0,0.41848089]
[1727867403059,5.33596923,61067.0,61066.0,0.41848089]
[1727867403714,5.16366923,61067.0,61066.0,0.41848089]
[1727867403933,4.15664223,61067.0,61066.0,0.41848089]
[1727867405074,3.45664223,61067.0,61066.0,0.41848089]
[1727867405536,3.10664223,61067.0,61066.0,0.41848089]
[1727867405762,3.05250445,61067.0,61066.0,0.41848089]
[1727867405984,3.10664223,61067.0,61066.0,0.41930189]
[1727867406409,3.10664223,61067.0,61066.0,0.42765767]
[1727867406630,3.05250445,61067.0,61066.0,0.39209816]
[1727867406846,2.55250445,61067.0,61066.0,0.37803161]
[1727867407074,2.55250445,61067.0,61066.0,0.36967583]
[1727867407075,0.83085645,61067.0,61066.0,0.36967583]
[1727867407290,0.83085645,61067.0,61066.0,0.37803161]
[1727867407291,0.66934545,61067.0,61066.0,0.37803161]
[1727867407943,0.14469445,61067.0,61066.0,0.37803161]
[1727867408382,0.32239145,61067.0,61066.0,0.37803161]
[1727867408593,0.32239145,61067.0,61066.0,0.50963161]
[1727867408810,0.23792445,61067.0,61066.0,0.50963161]
[1727867409029,9.445e-05,61067.0,61066.0,0.50963161]
[1727867409992,0.09181397,61067.0,61066.0,0.50963161]
[1727867410222,0.45,61080.0,61066.0,0.50963161]
[1727867410223,0.0398,61095.0,61068.0,0.0772]
[1727867410437,0.04805153,61104.0,61066.0,0.37803161]
[1727867410438,0.12061761,61117.0,61100.0,0.005]
[1727867410651,0.06562,61119.0,61106.0,0.28795243]
[1727867410865,0.28795243,61138.0,61104.0,0.28795243]
[1727867411080,0.28795243,61133.0,61107.0,0.01466978]
[1727867411295,0.28795243,61128.0,61100.0,0.1423]
[1727867411509,0.5,61123.0,61100.0,0.1423]
[1727867411721,0.5,61123.0,61088.0,0.002]
[1727867411722,0.28795243,61113.0,61105.0,0.0174026]
[1727867411939,0.28795243,61108.0,61086.0,0.1423]
[1727867412171,0.0407605,61112.0,61086.0,0.1423]
[1727867412384,0.005,61120.0,61086.0,0.1423]
[1727867412385,0.6271296,61122.0,61093.0,0.28795243]
[1727867412598,0.52521,61121.0,61093.0,0.28795243]
[1727867412814,0.52521,61121.0,61098.0,0.28795243]
[1727867413042,0.52521,61121.0,61109.0,0.28795243]
[1727867413306,1.175274,61131.0,61109.0,0.43025243]
[1727867413501,0.5,61137.0,61110.0,0.0139565]
[1727867413712,0.5,61137.0,61111.0,0.00327249]
[1727867413959,0.5,61137.0,61109.0,0.43025243]
[1727867413960,0.98253543,61136.0,61116.0,0.98253543]
[1727867414220,0.98253543,61136.0,61117.0,0.00327211]
[1727867414426,0.98253543,61136.0,61119.0,0.28795243]
[1727867414877,0.98253543,61136.0,61123.0,0.98253543]
[1727867415086,0.98253543,61143.0,61124.0,0.28795243]
[1727867415288,0.98253543,61136.0,61130.0,0.28795243]
[1727867415501,0.00164,61144.0,61130.0,0.28795243]
[1727867415713,0.24535261,61138.0,61131.0,0.01393158]
[1727867415932,0.00164,61144.0,61132.0,0.0301884]
[1727867416158,0.00164,61144.0,61132.0,0.04411815]
[1727867417469,0.00164,61144.0,61138.0,0.24535261]
[1727867417689,0.24535261,61152.0,61145.0,0.28795243]
[1727867417894,0.24535261,61152.0,61146.0,0.02879524]
[1727867418128,0.24535261,61152.0,61146.0,0.04245111]
[1727867418337,0.24535261,61151.0,61146.0,0.01365587]
[1727867418554,0.28795243,61156.0,61146.0,0.01365587]
[1727867418762,0.24535261,61158.0,61138.0,0.24535261]
[1727867418974,0.24535261,61158.0,61145.0,0.24535261]
[1727867419453,0.1,61157.0,61146.0,0.01363558]
[1727867419670,0.00164,61161.0,61146.0,0.01363558]
[1727867421767,0.24535261,61158.0,61146.0,0.01363558]
[1727867421970,0.1,61157.0,61146.0,0.01363558]
[1727867422176,0.1,61157.0,61147.0,0.02589882]
[1727867422571,0.1,61157.0,61148.0,0.01360156]
[1727867423029,0.1,61149.0,61148.0,0.01360156]
[1727867423472,0.1,61149.0,61142.0,0.24535261]
[1727867423473,0.1,61148.0,61142.0,0.24535261]
[1727867423675,0.1,61148.0,61138.0,0.24535261]
[1727867423895,0.24535261,61147.0,61124.0,0.24535261]
[1727867424115,0.1,61145.0,61138.0,0.24535261]
[1727867424325,0.0813,61155.0,61124.0,0.24535261]
[1727867424326,0.1,61138.0,61124.0,0.24535261]
[1727867424548,0.1,61138.0,61131.0,0.24535261]
[1727867424761,0.1,61136.0,61131.0,0.24535261]
[1727867425008,0.1,61136.0,61124.0,0.24535261]
[1727867425208,0.1,61136.0,61125.0,0.02453526]
[1727867425415,0.24535261,61135.0,61125.0,0.02453526]
[1727867425616,0.12565169,61134.0,61125.0,0.02453526]
[1727867425827,0.02565169,61134.0,61126.0,0.24535261]
[1727867426238,0.02565169,61134.0,61118.0,0.28795243]
[1727867426239,0.02565169,61134.0,61127.0,0.24535261]
[1727867426441,0.02565169,61134.0,61118.0,0.28795243]
[1727867426619,0.02565169,61134.0,61125.0,0.24535261]
[1727867426832,0.1,61144.0,61128.0,0.28795243]